{"text_format":"1","workbook":"xlsx","n_sheets":10,"sheets":["Form 120P-WA-EB","Multiple Sites","Option to Assign Payment","HVAC & Water Heating Equipment ","Lodging & Foodservice Equipment","Grocery Equipment","Insulation","Eligible Spaces","Lookups","Admin Tools"],"not_rendered":{"charts":0,"images":11,"macros":1,"external_links":0,"defined_names":40,"comments":2,"pivot_tables":0},"unopened":[],"bounds":{"document_bytes":16777216,"sheet_cells":100000,"rows_first":2000,"rows_last":500,"rows_between":2000,"halvings":0,"cell_chars":16384,"cell_head_chars":4096},"cells_cut":0,"cells_raw":0,"read":"whole","date_system":"1900"}

{"sheet":"Form 120P-WA-EB","index":0,"n_rows":73,"n_cols":43,"rows_kept":73,"cut":false,"hidden":false,"merged":[[67,1,67,38],[68,1,68,30],[70,1,70,27],[70,28,70,38],[104,1,105,21],[105,23,105,38],[136,23,139,38],[140,23,142,38],[73,1,86,21],[73,23,83,38],[84,23,89,38],[87,1,95,21],[90,23,93,38],[94,23,97,38],[96,1,99,21],[98,23,101,38],[100,1,103,21],[102,23,104,38],[59,33,59,38],[61,1,61,38],[62,2,62,38],[64,2,64,15],[64,17,64,32],[64,34,64,37],[55,1,55,6],[55,7,55,9],[57,1,57,6],[57,7,57,9],[59,1,59,6],[59,7,59,9],[53,1,53,38],[47,1,47,19],[49,1,49,8],[49,9,49,12],[49,13,49,14],[49,16,49,19],[49,30,49,38],[51,1,51,9],[51,11,51,19],[51,30,51,38],[52,1,52,9],[52,11,52,18],[43,21,43,24],[43,25,43,38],[19,21,19,29],[19,31,19,38],[22,21,22,28],[22,29,22,32],[22,33,22,34],[22,36,22,38],[25,21,25,28],[25,30,25,38],[34,21,34,38],[40,21,40,26],[40,27,40,38],[16,21,16,38],[9,21,9,23],[9,24,9,29],[9,30,9,32],[9,33,9,38],[13,21,13,38]]}
[]
[null,"Existing Buildings Standard Incentives - NW Natural Washington"]
[null,"Commercial Buildings | Incentive Application | Form 120P-WA-EB"]
[]
[]
[]
[null,"TRC is a Program Management Contractor for Energy Trust of Oregon."]
[]
[null,null,null,null,null,null,null,null,null,null,null,null,null,null,null,null,null,null,null,null,null,"Program Use Only",null,null,null,null,null,null,null,null,null,null,null,null,null,null,null,null,{"$f":"Version","v":"v2024.3"}]
[null,null,null,null,null,null,null,null,null,null,null,null,null,null,null,null,null,null,null,null,null,"Reference ID",null,null,null,null,null,null,null,null,"PT ID"]
[]
[null,null,null,null,null,null,null,null,null,null,null,null,null,null,null,null,null,null,null,null,null,"Participant Information"]
[]
[]
[null,null,null,null,null,null,null,null,null,null,null,null,null,null,null,null,null,null,null,null,null,"Legal Business Name (must match Participant's submitted W-9)"]
[]
[]
[null,null,null,null,null,null,null,null,null,null,null,null,null,null,null,null,null,null,null,null,null,"Assumed Business Name or DBA"]
[]
[]
[null,null,null,null,null,null,null,null,null,null,null,null,null,null,null,null,null,null,null,null,null,"Contact Name",null,null,null,null,null,null,null,null,null,"Title"]
[]
[]
[null,null,null,null,null,null,null,null,null,null,null,null,null,null,null,null,null,null,null,null,null,"Participant Mailing Address",null,null,null,null,null,null,null,"City",null,null,null,"State",null,null,"Zip"]
[]
[]
[null,null,null,null,null,null,null,null,null,null,null,null,null,null,null,null,null,null,null,null,null,"Primary Phone",null,null,null,null,null,null,null,null,"Email Address"]
[]
[null,null,null,null,null,null,null,null,null,null,null,null,null,null,null,null,null,null,null,null,null,"Business Type:",null,null,null,null,null,null,null,null,null,null,null,null,null,null,null,null,null,null,null,0]
[null,null,null,null,null,null,null,null,null,null,null,null,null,null,null,null,null,null,null,null,null,"Participant  Role:",null,null,null,null,null,null,null,null,null,null,null,null,null,null,null,null,null,null,null,0]
[null,null,null,null,null,null,null,null,null,null,null,null,null,null,null,null,null,null,null,null,null,"Existing Building Project Type:"]
[]
[]
[]
[]
[null,null,null,null,null,null,null,null,null,null,null,null,null,null,null,null,null,null,null,null,null,"Business/Project Name"]
[]
[null,null,null,null,null,null,null,null,null,null,null,null,null,null,null,null,null,null,null,null,null,"Utility Information "]
[]
[null,null,null,null,null,null,null,null,null,null,null,null,null,null,null,null,null,null,null,null,null,"(You must attach a copy of your most recent utility bill)"]
[null,null,null,null,null,null,null,null,null,null,null,null,null,null,null,null,null,null,null,null,null,"NW Natural Account #:"]
[]
[]
[null,null,null,null,null,null,null,null,null,null,null,null,null,null,null,null,null,null,null,null,null,"Rate Schedule:"]
[]
[]
[]
[null,"Project and Facility Information",null,null,null,null,null,null,null,null,null,null,null,null,null,null,null,null,null,null,null,"Primary Heating Fuel Source"]
[]
[null,null,null,null,null,null,null,null,null,null,null,null,null,null,null,null,null,null,null,null,null,null,null,null,null,null,null,null,null,null,null,null,null,null,null,null,null,null,null,null,null,0,{"$f":"VLOOKUP($AP50,Fuel,2)","v":"None"}]
[null,"Site Address",null,null,null,null,null,null,null,"City",null,null,null,"State",null,null,"Zip",null,null,null,null,"Water Heating Fuel Source"]
[null,null,null,null,null,null,null,null,null,null,null,null,null,null,null,null,null,null,null,null,null,null,null,null,null,null,null,null,null,null,null,null,null,null,null,null,null,null,null,null,null,0,{"$f":"VLOOKUP($AP52,Fuel,2)","v":"None"}]
[null,"Contact name for Site Visit",null,null,null,null,null,null,null,null,null,"Phone number for Site Visit"]
[null,"If requesting incentives for multiple locations,use the Multiple Sites section to list each location's site address, utility infomation, and heating fuel sources"]
[]
[null,"Project Square Footage",null,null,null,null,null,null,null,null,null,"Building Use Type:"]
[]
[null,"Building Square Footage"]
[]
[null,"Year Built"]
[]
[null,"Participant Signature Please sign below either manually (ex. handwritten) or electronically (ex. typing your name, drawing your signature on a touchpad or touchscreen, inserting a digital signature, or, if available, by clicking the box)."]
[]
[]
[null,null,null,null,null,null,null,null,null,null,null,null,null,null,null,null,null,{"$f":"IF(ContactName=\"\",\"\",ContactName)","v":""}]
[null,null,"Authorized Representative Signature",null,null,null,null,null,null,null,null,null,null,null,null,null,null,"Name (printed)",null,null,null,null,null,null,null,null,null,null,null,null,null,null,null,null,"Date"]
[]
[null,"Grant Funding"]
[null,"Did you receive any other external funding, such as grants, that reduced your final out-of-pocket purchase/installation costs for any energy saving equipment listed in this application (See Project Cost Documentation for more information)?"]
[]
[null,"If yes, what is the total amount of external funding, Include additional information with submitted invoices."]
[]
[null,"TERMS AND CONDITIONS"]

{"sheet":"Multiple Sites","index":1,"n_rows":113,"n_cols":12,"rows_kept":113,"cut":false,"hidden":false,"merged":[]}
[]
["Existing Buildings Standard Incentives - NW Natural Washington"]
["Commercial Buildings | Incentive Application | Form 120P-WA-EB"]
[]
[]
[]
["TRC is a Program Management Contractor for Energy Trust of Oregon.",null,null,null,null,null,null,null,"Program Use Only",null,null,{"$f":"Version","v":"v2024.3"}]
[null,null,null,null,null,null,null,null,"Reference ID",{"$f":"IF(ReferenceID=\"\",\"\",ReferenceID)","v":""},"PT ID",{"$f":"IF(PTID=\"\",\"\",PTID)","v":""}]
["Multiple Sites"]
["Location\n(Bldg Name / Store #)","Site Address","City","State","Zip","Electric Utility","Electric Account Number","Gas Utility","Gas Account Number","Gas Rate Schedule","Primary Heating \nFuel Source","Water Heating \nFuel Source"]
[null,null,null,null,null,"(select)",null,"(select)",null,null,"(select)","(select)"]
[null,null,null,null,null,"(select)",null,"(select)",null,null,"(select)","(select)"]
[null,null,null,null,null,"(select)",null,"(select)",null,null,"(select)","(select)"]
[null,null,null,null,null,"(select)",null,"(select)",null,null,"(select)","(select)"]
[null,null,null,null,null,"(select)",null,"(select)",null,null,"(select)","(select)"]
[null,null,null,null,null,"(select)",null,"(select)",null,null,"(select)","(select)"]
[null,null,null,null,null,"(select)",null,"(select)",null,null,"(select)","(select)"]
[null,null,null,null,null,"(select)",null,"(select)",null,null,"(select)","(select)"]
[null,null,null,null,null,"(select)",null,"(select)",null,null,"(select)","(select)"]
[null,null,null,null,null,"(select)",null,"(select)",null,null,"(select)","(select)"]
[null,null,null,null,null,"(select)",null,"(select)",null,null,"(select)","(select)"]
[null,null,null,null,null,"(select)",null,"(select)",null,null,"(select)","(select)"]
[null,null,null,null,null,"(select)",null,"(select)",null,null,"(select)","(select)"]
[null,null,null,null,null,"(select)",null,"(select)",null,null,"(select)","(select)"]
[null,null,null,null,null,"(select)",null,"(select)",null,null,"(select)","(select)"]
[null,null,null,null,null,"(select)",null,"(select)",null,null,"(select)","(select)"]
[null,null,null,null,null,"(select)",null,"(select)",null,null,"(select)","(select)"]
[null,null,null,null,null,"(select)",null,"(select)",null,null,"(select)","(select)"]
[null,null,null,null,null,"(select)",null,"(select)",null,null,"(select)","(select)"]
[null,null,null,null,null,"(select)",null,"(select)",null,null,"(select)","(select)"]
[null,null,null,null,null,"(select)",null,"(select)",null,null,"(select)","(select)"]
[null,null,null,null,null,"(select)",null,"(select)",null,null,"(select)","(select)"]
[null,null,null,null,null,"(select)",null,"(select)",null,null,"(select)","(select)"]
[null,null,null,null,null,"(select)",null,"(select)",null,null,"(select)","(select)"]
[null,null,null,null,null,"(select)",null,"(select)",null,null,"(select)","(select)"]
[null,null,null,null,null,"(select)",null,"(select)",null,null,"(select)","(select)"]
[null,null,null,null,null,"(select)",null,"(select)",null,null,"(select)","(select)"]
[null,null,null,null,null,"(select)",null,"(select)",null,null,"(select)","(select)"]
[null,null,null,null,null,"(select)",null,"(select)",null,null,"(select)","(select)"]
[null,null,null,null,null,"(select)",null,"(select)",null,null,"(select)","(select)"]
[null,null,null,null,null,"(select)",null,"(select)",null,null,"(select)","(select)"]
[null,null,null,null,null,"(select)",null,"(select)",null,null,"(select)","(select)"]
[null,null,null,null,null,"(select)",null,"(select)",null,null,"(select)","(select)"]
[null,null,null,null,null,"(select)",null,"(select)",null,null,"(select)","(select)"]
[null,null,null,null,null,"(select)",null,"(select)",null,null,"(select)","(select)"]
[null,null,null,null,null,"(select)",null,"(select)",null,null,"(select)","(select)"]
[null,null,null,null,null,"(select)",null,"(select)",null,null,"(select)","(select)"]
[null,null,null,null,null,"(select)",null,"(select)",null,null,"(select)","(select)"]
[null,null,null,null,null,"(select)",null,"(select)",null,null,"(select)","(select)"]
[null,null,null,null,null,"(select)",null,"(select)",null,null,"(select)","(select)"]
[null,null,null,null,null,"(select)",null,"(select)",null,null,"(select)","(select)"]
[null,null,null,null,null,"(select)",null,"(select)",null,null,"(select)","(select)"]
[null,null,null,null,null,"(select)",null,"(select)",null,null,"(select)","(select)"]
[null,null,null,null,null,"(select)",null,"(select)",null,null,"(select)","(select)"]
[null,null,null,null,null,"(select)",null,"(select)",null,null,"(select)","(select)"]
[null,null,null,null,null,"(select)",null,"(select)",null,null,"(select)","(select)"]
[null,null,null,null,null,"(select)",null,"(select)",null,null,"(select)","(select)"]
[null,null,null,null,null,"(select)",null,"(select)",null,null,"(select)","(select)"]
[null,null,null,null,null,"(select)",null,"(select)",null,null,"(select)","(select)"]
[null,null,null,null,null,"(select)",null,"(select)",null,null,"(select)","(select)"]
[null,null,null,null,null,"(select)",null,"(select)",null,null,"(select)","(select)"]
[null,null,null,null,null,"(select)",null,"(select)",null,null,"(select)","(select)"]
[null,null,null,null,null,"(select)",null,"(select)",null,null,"(select)","(select)"]
[null,null,null,null,null,"(select)",null,"(select)",null,null,"(select)","(select)"]
[null,null,null,null,null,"(select)",null,"(select)",null,null,"(select)","(select)"]
[null,null,null,null,null,"(select)",null,"(select)",null,null,"(select)","(select)"]
[null,null,null,null,null,"(select)",null,"(select)",null,null,"(select)","(select)"]
[null,null,null,null,null,"(select)",null,"(select)",null,null,"(select)","(select)"]
[null,null,null,null,null,"(select)",null,"(select)",null,null,"(select)","(select)"]
[null,null,null,null,null,"(select)",null,"(select)",null,null,"(select)","(select)"]
[null,null,null,null,null,"(select)",null,"(select)",null,null,"(select)","(select)"]
[null,null,null,null,null,"(select)",null,"(select)",null,null,"(select)","(select)"]
[null,null,null,null,null,"(select)",null,"(select)",null,null,"(select)","(select)"]
[null,null,null,null,null,"(select)",null,"(select)",null,null,"(select)","(select)"]
[null,null,null,null,null,"(select)",null,"(select)",null,null,"(select)","(select)"]
[null,null,null,null,null,"(select)",null,"(select)",null,null,"(select)","(select)"]
[null,null,null,null,null,"(select)",null,"(select)",null,null,"(select)","(select)"]
[null,null,null,null,null,"(select)",null,"(select)",null,null,"(select)","(select)"]
[null,null,null,null,null,"(select)",null,"(select)",null,null,"(select)","(select)"]
[null,null,null,null,null,"(select)",null,"(select)",null,null,"(select)","(select)"]
[null,null,null,null,null,"(select)",null,"(select)",null,null,"(select)","(select)"]
[null,null,null,null,null,"(select)",null,"(select)",null,null,"(select)","(select)"]
[null,null,null,null,null,"(select)",null,"(select)",null,null,"(select)","(select)"]
[null,null,null,null,null,"(select)",null,"(select)",null,null,"(select)","(select)"]
[null,null,null,null,null,"(select)",null,"(select)",null,null,"(select)","(select)"]
[null,null,null,null,null,"(select)",null,"(select)",null,null,"(select)","(select)"]
[null,null,null,null,null,"(select)",null,"(select)",null,null,"(select)","(select)"]
[null,null,null,null,null,"(select)",null,"(select)",null,null,"(select)","(select)"]
[null,null,null,null,null,"(select)",null,"(select)",null,null,"(select)","(select)"]
[null,null,null,null,null,"(select)",null,"(select)",null,null,"(select)","(select)"]
[null,null,null,null,null,"(select)",null,"(select)",null,null,"(select)","(select)"]
[null,null,null,null,null,"(select)",null,"(select)",null,null,"(select)","(select)"]
[null,null,null,null,null,"(select)",null,"(select)",null,null,"(select)","(select)"]
[null,null,null,null,null,"(select)",null,"(select)",null,null,"(select)","(select)"]
[null,null,null,null,null,"(select)",null,"(select)",null,null,"(select)","(select)"]
[null,null,null,null,null,"(select)",null,"(select)",null,null,"(select)","(select)"]
[null,null,null,null,null,"(select)",null,"(select)",null,null,"(select)","(select)"]
[null,null,null,null,null,"(select)",null,"(select)",null,null,"(select)","(select)"]
[null,null,null,null,null,"(select)",null,"(select)",null,null,"(select)","(select)"]
[null,null,null,null,null,"(select)",null,"(select)",null,null,"(select)","(select)"]
[null,null,null,null,null,"(select)",null,"(select)",null,null,"(select)","(select)"]
[null,null,null,null,null,"(select)",null,"(select)",null,null,"(select)","(select)"]
[null,null,null,null,null,"(select)",null,"(select)",null,null,"(select)","(select)"]
[null,null,null,null,null,"(select)",null,"(select)",null,null,"(select)","(select)"]
[null,null,null,null,null,"(select)",null,"(select)",null,null,"(select)","(select)"]
[null,null,null,null,null,"(select)",null,"(select)",null,null,"(select)","(select)"]
[null,null,null,null,null,"(select)",null,"(select)",null,null,"(select)","(select)"]
[null,null,null,null,null,"(select)",null,"(select)",null,null,"(select)","(select)"]
[null,null,null,null,null,"(select)",null,"(select)",null,null,"(select)","(select)"]
[null,null,null,null,null,"(select)",null,"(select)",null,null,"(select)","(select)"]
[null,null,null,null,null,"(select)",null,"(select)",null,null,"(select)","(select)"]
[null,null,null,null,null,"(select)",null,"(select)",null,null,"(select)","(select)"]
[null,null,null,null,null,"(select)",null,"(select)",null,null,"(select)","(select)"]

{"sheet":"Option to Assign Payment","index":2,"n_rows":30,"n_cols":33,"rows_kept":30,"cut":false,"hidden":false,"merged":[[26,8,26,32],[25,8,25,31],[25,1,26,7],[29,22,30,31],[29,32,30,32],[29,1,30,3],[29,4,30,9],[29,20,30,21],[27,1,28,5],[27,6,27,15],[27,17,27,24],[27,26,27,27],[27,29,27,31],[28,6,28,12],[9,15,9,17],[9,18,9,23],[9,24,9,26],[9,27,9,32],[11,1,12,32],[20,8,20,31],[20,1,21,7],[21,8,21,31],[20,32,21,32],[15,1,16,32],[17,1,17,32],[18,1,19,7],[18,8,18,16],[18,18,18,27],[18,29,18,31],[19,8,19,16],[19,18,19,27],[19,29,19,31],[23,1,24,7],[23,8,23,16],[23,18,23,27],[23,29,23,31],[24,8,24,16],[24,18,24,27],[24,29,24,31]]}
[]
[null,"Existing Buildings Standard Incentives - NW Natural Washington"]
[null,"Commercial Buildings | Option to Assign Payment | Form 120P-WA-EB"]
[]
[]
[]
[null,"TRC is a Program Management Contractor for Energy Trust of Oregon."]
[]
[null,null,null,null,null,null,null,null,null,null,null,null,null,null,null,"Program Use Only",null,null,null,null,null,null,null,null,null,null,null,null,null,null,null,null,{"$f":"Version","v":"v2024.3"}]
[null,null,null,null,null,null,null,null,null,null,null,null,null,null,null,"Reference ID",null,null,{"$f":"IF(ReferenceID=\"\",\"\",ReferenceID)","v":""},null,null,null,null,null,"PT ID",null,null,{"$f":"IF(PTID=\"\",\"\",PTID)","v":""}]
[]
[null,"Option to Assign Incentive Payment\nPLEASE NOTE: The Energy Trust incentive payment will be made to Participant unless Participant and its designated Payee complete the section below to assign the payment to Payee. An IRS Form W-9 (Request for Taxpayer Identification Number and Certification) for the Payee named below must be attached if this option is selected."]
[]
[]
[null,"PARTICIPANT AND PAYEE"]
[null,"Both Participant and Payee understand and agree that if this Option to Assign Incentive Payment is selected the incentive check will be issued to the Payee named below at the address listed below and Energy Trust is not responsible for any tax liabilities that may be associated with the incentive payment. In addition, Participant understands that, notwithstanding this assignment, responsibility for complying with the terms and conditions of this incentive agreement shall continue to be the obligation of Participant, and Energy Trust's sole responsibility under this incentive agreement shall be to Participant. Accordingly, Payee understands that it shall have no rights against Energy Trust or the PMC with respect to such assignment or the payment of the incentive, and in the event that Energy Trust does not pay the incentive as a result of Participant's failure to comply with this agreement, Payee's sole recourse shall be against Participant. Participant directs Energy Trust to pay any incentive to which it is entitled to the Payee named below and waives all rights to directly receive the Energy Trust incentives for the identified energy-efficiency project. "]
[]
[null,"SIGNATURES: By my signature below, I represent to Energy Trust that I have read this agreement and am duly authorized to sign this Option to Assign Incentive Payment on behalf of the party for whom I am signing."]
[null,"On behalf of Participant\n(Authorized Representative)"]
[null,null,null,null,null,null,null,null,"(printed)",null,null,null,null,null,null,null,null,null,"(signature)",null,null,null,null,null,null,null,null,null,null,"Date"]
[null,"Participant \n",null,null,null,null,null,null,{"$f":"IF(BusinessName=\"\",\"\",BusinessName)","v":""}]
[null,null,null,null,null,null,null,null,"(Legal business name as shown on W-9)"]
[]
[null,"On behalf of Payee\n(Authorized Representative)"]
[null,null,null,null,null,null,null,null,"(printed)",null,null,null,null,null,null,null,null,null,"(signature)",null,null,null,null,null,null,null,null,null,null,"Date"]
[null,"Payee Name"]
[null,null,null,null,null,null,null,null,"(Must match submitted IRS Form W-9)"]
[null,"Mailing Address\n     (for check)"]
[null,null,null,null,null,null,"Street",null,null,null,null,null,null,null,null,null,null,"City",null,null,null,null,null,null,null,null,"State",null,null,"Zip"]
[null,"Phone",null,null,null,null,null,null,null,null,null,null,null,null,null,null,null,null,null,null,"Email"]

{"sheet":"HVAC & Water Heating Equipment ","index":3,"n_rows":71,"n_cols":19,"rows_kept":71,"cut":false,"hidden":false,"merged":[[46,18,50,18],[46,17,50,17],[46,16,50,16],[46,15,50,15],[34,17,35,17],[37,16,38,16],[39,15,43,18],[49,8,49,10],[49,11,49,12],[39,1,45,1],[46,1,50,1],[40,2,41,14],[39,2,39,14],[23,1,25,1],[34,18,35,18],[34,2,35,14],[34,16,35,16],[53,2,53,14],[46,2,48,14],[49,2,49,3],[49,4,49,5],[42,11,42,13],[44,2,44,14],[45,2,45,14],[42,6,42,7],[42,2,42,3],[42,8,42,10],[42,4,42,5],[49,6,49,7],[36,1,38,1],[37,2,38,14],[36,2,36,14],[13,16,15,16],[14,7,14,12],[31,2,31,14],[19,2,19,14],[23,2,23,14],[16,15,16,18],[33,2,33,14],[37,17,38,17],[37,18,38,18],[19,1,22,1],[33,1,35,1],[27,2,27,14],[25,6,25,10],[25,11,25,13],[23,15,26,15],[23,16,26,16],[12,15,12,18],[13,2,13,14],[13,15,15,15],[13,17,15,17],[13,18,15,18],[20,18,22,18],[20,16,22,16],[20,17,22,17],[21,15,22,15],[20,2,22,14],[24,2,24,14],[23,18,26,18],[23,17,26,17],[3,1,4,14],[10,2,10,14],[11,2,11,14],[16,2,16,14],[17,2,17,14],[11,1,12,1],[12,2,12,14],[16,1,18,1],[18,2,18,14],[13,1,15,1],[69,1,70,16],[65,2,65,14],[66,2,66,14],[67,2,67,14],[54,2,54,14],[54,1,66,1],[54,15,57,15],[54,16,57,16],[61,2,61,4],[61,5,61,14],[54,17,57,17],[54,18,57,18],[58,15,66,15],[58,16,66,16],[58,17,66,17],[58,18,66,18]]}
[]
[null,"Existing Buildings Standard Incentives ¾ NW Natural Washington"]
[null,"Commercial Buildings | Incentive Application | Form 120P-WA-EB"]
[]
[]
[]
[null,"TRC is a Program Management Contractor for Energy Trust of Oregon.",null,null,null,null,null,null,null,null,null,null,null,null,null,"Program Use Only",null,null,{"$f":"Version","v":"v2024.3"}]
[null,null,null,null,null,null,null,null,null,null,null,null,null,null,null,"Reference ID",{"$f":"IF(ReferenceID=\"\",\"\",ReferenceID)","v":""},"PTID",{"$f":"IF(PTID=\"\",\"\",PTID)","v":""}]
[]
[null,"HVAC and Water Heating"]
[null,"EQUIPMENT","DESCRIPTION/ REQUIREMENTS",null,null,null,null,null,null,null,null,null,null,null,null,"INCENTIVE PER UNIT","QUANTITY","INCENTIVE TOTAL","INSTALLED COST"]
[null,"New Rooftop Unit (RTU) with Demand Control Ventilation (DCV)",null,null,null,null,null,null,null,null,null,null,null,null,null,29,null,{"$f":"P12*Q12","v":0}]
[null,null,"*Describe the space that the RTU will serve:\n (contact Energy Trust for eligible space types)"]
[null,"Advanced Rooftop Controls (ARC) - \nFull Retrofit",null,null,null,null,null,null,null,null,null,null,null,null,null,300,null,{"$f":"P14*Q14","v":0}]
[]
[]
[null,"Infrared Radiant Heater"]
[null,null,"Non-Modulating",null,null,null,null,null,null,null,null,null,null,null,null,1.25,null,{"$f":"P18*Q18","v":0}]
[null,null,"Modulating",null,null,null,null,null,null,null,null,null,null,null,null,2.25,null,{"$f":"P19*Q19","v":0}]
[null,"Commercial Condensing Tank Water Heater",null,null,null,null,null,null,null,null,null,null,null,null,null,3.5,null,{"$f":"P20*Q20","v":0}]
[null,null,"\n",null,null,null,null,null,null,null,null,null,null,null,null,"Bonus incentive:",null,{"$f":"Q21*P22","v":0}]
[null,null,null,null,null,null,null,null,null,null,null,null,null,null,null,0.35]
[]
[null," Commercial\n Condensing\n Tankless Water\n Heater\n under 200 kBtu/h\n input",null,null,null,null,null,null,null,null,null,null,null,null,null,140,null,{"$f":"P24*Q24","v":0}]
[null,null,"Is there an existing water storage tank attached?"]
[null,null,null,null,null,null,"If yes, what is the capacity?"]
[]
[null," Commercial\n Condensing\n Tankless Water\n Heater/Boiler\n at least 200 kBtu/h\n input",null,null,null,null,null,null,null,null,null,null,null,null,null,1.4,null,{"$f":"P28*Q28","v":0}]
[]
[]
[null," HVAC and Water Heating continued"]
[null,"EQUIPMENT","DESCRIPTION/ REQUIREMENTS",null,null,null,null,null,null,null,null,null,null,null,null,"INCENTIVE PER UNIT","QUANTITY","INCENTIVE TOTAL","INSTALLED COST"]
[null," Commercial\n Condensing Gas\n Furnace",null,null,null,null,null,null,null,null,null,null,null,null,null,8.25,null,{"$f":"P33*(Q33)","v":0}]
[null," Gas-fired\n High-Efficiency\n Condensing HVAC\n Boiler",null,null,null,null,null,null,null,null,null,null,null,null,null,6.5,null,{"$f":"P34*(Q34)","v":0}]
[null,null,null,null,null,null,null,null,null,null,null,null,null,null,null,"Bonus incentive:",null,{"$f":"P36*Q35","v":0}]
[null,null,null,null,null,null,null,null,null,null,null,null,null,null,null,3.75]
[null,"Modulating Boiler Burner",null,null,null,null,null,null,null,null,null,null,null,null,null,10,null,{"$f":"P37*Q37","v":0}]
[null,null,null,null,null,null,null,null,null,null,null,null,null,null,null,"Bonus incentive:",null,{"$f":"P39*Q38","v":0}]
[null,null,null,null,null,null,null,null,null,null,null,null,null,null,null,5]
[null,"Steam Trap"]
[]
[]
[null,null,"Psig:",null,null,null,"Trap Size",null,null,null,null,"Occupied 24/7:"]
[]
[null,null,"Replaced steam trap",null,null,null,null,null,null,null,null,null,null,null,null,500,null,{"$f":"P45*Q45","v":0}]
[null,null,"Repaired steam trap",null,null,null,null,null,null,null,null,null,null,null,null,400,null,{"$f":"P46*Q46","v":0}]
[null,"Steam Trap - Dry Cleaners",null,null,null,null,null,null,null,null,null,null,null,null,null,350,null,{"$f":"P47*Q47","v":0}]
[]
[]
[null,null,"Psig:",null,null,null,null,null,"Trap Size:"]
[]
[]
[null," HVAC and Water Heating continued"]
[null,"EQUIPMENT","DESCRIPTION/ REQUIREMENTS",null,null,null,null,null,null,null,null,null,null,null,null,"INCENTIVE PER UNIT","QUANTITY","INCENTIVE TOTAL","INSTALLED COST"]
[null,"Commercial Smart Thermostat ",null,null,null,null,null,null,null,null,null,null,null,null,null,400,null,{"$f":"P55*Q55","v":0}]
[]
[]
[]
[null,null,null,null,null,null,null,null,null,null,null,null,null,null,null,500,null,{"$f":"P59*Q59","v":0}]
[]
[]
[null,null,"If applicable:"]
[]
[]
[]
[null,null,"How is your site heated?"]
[null,null,"Is there cooling onsite?"]
[null,null,"Non-grocery sites",null,null,null,null,null,null,null,null,null,null,null,null,400]
[]
[null,"TOTALS FOR HVAC AND WATER HEATING",null,null,null,null,null,null,null,null,null,null,null,null,null,null,null,"TOTAL \nINCENTIVES","TOTAL\nINSTALLED COST"]
[null,null,null,null,null,null,null,null,null,null,null,null,null,null,null,null,null,{"$f":"SUM(R12,R14,R18:R26,R28:R28,R34:R37,R45:R51,R55:R67)","v":0},{"$f":"SUM(S12,S14,S18:S27,S28:S28,S34:S39,S55:S67,S45,S46,S47)","v":0}]

{"sheet":"Lodging & Foodservice Equipment","index":4,"n_rows":60,"n_cols":14,"rows_kept":60,"cut":false,"hidden":false,"merged":[[27,1,32,1],[27,8,27,11],[24,8,24,11],[24,1,26,1],[26,2,26,7],[25,2,25,7],[30,2,30,7],[29,2,29,7],[28,2,28,7],[27,2,27,7],[24,2,24,7],[11,1,18,1],[11,2,11,7],[42,9,43,9],[42,10,43,10],[19,2,19,7],[36,8,37,11],[12,2,12,3],[13,2,13,3],[22,2,22,3],[20,1,23,1],[36,1,44,1],[39,10,40,10],[20,2,20,7],[37,2,37,7],[34,2,34,7],[39,11,40,11],[58,1,59,9],[53,2,53,7],[53,1,55,1],[57,1,57,11],[54,9,55,9],[54,10,55,10],[54,11,55,11],[54,2,55,7],[10,2,10,7],[16,2,16,7],[18,2,18,7],[42,11,43,11],[14,2,14,4],[17,2,17,7],[36,2,36,7],[21,2,21,3],[20,11,23,11],[20,8,23,8],[20,9,23,9],[20,10,23,10],[39,9,40,9],[35,2,35,7],[32,2,32,7],[31,2,31,7],[50,1,52,1],[51,9,52,9],[51,10,52,10],[51,11,52,11],[50,2,50,7],[51,2,52,7],[49,2,49,7],[47,2,47,7],[48,2,48,7],[45,2,45,7],[38,2,40,7],[41,2,43,7],[44,2,44,7],[46,2,46,7]]}
[]
[null,"Existing Buildings Standard Incentives ¾ NW Natural Washington"]
[null,"Commercial Buildings | Incentive Application | Form 120P-WA-EB"]
[]
[]
[]
[null,"TRC is a Program Management Contractor for Energy Trust of Oregon.",null,null,null,null,null,null,"Program Use Only",null,null,{"$f":"Version","v":"v2024.3"}]
[null,null,null,null,null,null,null,null,"Reference ID",{"$f":"IF(ReferenceID=\"\",\"\",ReferenceID)","v":""},"PTID",{"$f":"IF(PTID=\"\",\"\",PTID)","v":""}]
[]
[null,"Lodging and Foodservice"]
[null,"EQUIPMENT","REQUIREMENTS",null,null,null,null,null,"INCENTIVE PER UNIT","QUANTITY","INCENTIVE TOTAL","INSTALLED COST"]
[null,"Commercial  Swimming Pool Heater"]
[null,null,"   Pool Location: "]
[null,null,"   Pool Cover:"]
[null,null,"   Number of heaters serving pool: "]
[]
[null,null,"Non-condensing Heater, Covered",null,null,null,null,null,0.9,null,{"$f":"I17*J17","v":0}]
[null,null,"Non-condensing Heater, Not Covered",null,null,null,null,null,1,null,{"$f":"I18*J18","v":0}]
[null,null,"Condensing Heater, Covered",null,null,null,null,null,3,null,0]
[null,null,"Condensing Heater, Not Covered",null,null,null,null,null,5,null,0]
[null,"Commercial Pool Cover",null,null,null,null,null,null,6,null,{"$f":"I21*J21","v":0}]
[null,null,"  Pool Location: "]
[null,null,"  Pool Heater Type:"]
[]
[null,"Two-stage Gas Valve on Clothes Dryers"]
[null,null,"Sites with on-premises laundry",null,null,null,null,null,700,null,{"$f":"I26*J26","v":0}]
[null,null,"Coin-operated laundromats",null,null,null,null,null,400,null,0]
[null,"Ozone Laundry Systems "]
[null,null,"Total laundry capacity is less than 75 lbs:",null,null,null,null,null,5000,null,{"$f":"I29*J29","v":0}]
[null,null,"Total laundry capacity is between 75 and 125 lbs:",null,null,null,null,null,7500,null,0]
[null,null,"Total laundry capacity is between 126 and 400 lbs:",null,null,null,null,null,15000,null,0]
[null,null,"Total laundry capacity is between 401 and 600 lbs:",null,null,null,null,null,25000,null,0]
[null,null,"Total laundry capacity is greater than 600 lbs:",null,null,null,null,null,30000,null,0]
[null,"Lodging and Foodservice continued"]
[null,"EQUIPMENT","REQUIREMENTS",null,null,null,null,null,"INCENTIVE PER UNIT","QUANTITY","INCENTIVE TOTAL","INSTALLED COST"]
[null," ENERGY STAR®\n Commercial\n Laundry Washer,\n Common Areas",null,null,null,null,null,null,100,null,{"$f":"I36*J36","v":0},0]
[null,"Gas-fired Automatic Conveyor Broiler"]
[]
[null,null,"Total conveyor belt width less than 20” ",null,null,null,null,null,2500,null,{"$f":"I39*J39","v":0}]
[null,null,null,null,null,null,null,null,"Bonus incentive:",null,{"$f":"I41*J40","v":0},null,null,"Updated incentive and width"]
[null,null,null,null,null,null,null,null,485,null,null,null,null,"Updated incentive and width"]
[null,null,"Total conveyor belt width 20” to 26” ",null,null,null,null,null,3000,null,0,0]
[null,null,null,null,null,null,null,null,"Bonus incentive:",null,{"$f":"I44*J43","v":0}]
[null,null,null,null,null,null,null,null,485]
[null,null,"Total conveyor belt width greater than 26” ",null,null,null,null,null,3500,null,0,0]
[null,"Gas Convection Oven",null,null,null,null,null,null,315,null,0,0]
[null,"Gas Combination Oven",null,null,null,null,null,null,750,null,0,0]
[null,"Single Rack Gas Oven",null,null,null,null,null,null,1500,null,0]
[null,"Double Rack Gas Oven",null,null,null,null,null,null,2000,null,0,0]
[null,"Pre-Rinse Spray Valve",null,null,null,null,null,null,30,null,{"$f":"I50*J50","v":0}]
[null,"Gas Steam Cooker",null,null,null,null,null,null,3400,null,{"$f":"I51*J51","v":0}]
[null,null,null,null,null,null,null,null,"Bonus incentive:",null,{"$f":"I53*J52","v":0}]
[null,null,null,null,null,null,null,null,1000]
[null,"Commercial Vent Hood with Demand Controlled Ventilation",null,null,null,null,null,null,1500,null,{"$f":"I54*J54","v":0},0]
[null,null,null,null,null,null,null,null,"Bonus incentive:",null,{"$f":"I56*J56","v":0}]
[null,null,null,null,null,null,null,null,350]
[]
[]
[null,"TOTALS FOR LODGING AND FOODSERVICE",null,null,null,null,null,null,null,null,"TOTAL \nINCENTIVES","TOTAL\nINSTALLED COST"]
[null,null,null,null,null,null,null,null,null,null,{"$f":"SUM(K17:K24,K36,K39:K45,K46:K56,K29:K33,K26:K27)","v":0},{"$f":"SUM(L17:L24,L36,L39:L45,L46:L56,L29:L33,L26:L27)","v":0}]

{"sheet":"Grocery Equipment","index":5,"n_rows":27,"n_cols":8,"rows_kept":27,"cut":false,"hidden":false,"merged":[[11,4,14,7],[25,1,26,5],[12,2,13,3],[21,5,22,5],[11,1,16,1],[21,6,22,6],[21,7,22,7],[20,2,22,3],[18,2,19,3],[23,2,23,3],[17,1,23,1],[10,2,10,3],[11,2,11,3],[17,2,17,3],[16,2,16,3],[15,2,15,3]]}
[]
[null,"Existing Buildings Standard Incentives ¾ NW Natural Washington"]
[null,"Commercial Buildings | Incentive Application | Form 120P-WA-EB"]
[]
[]
[]
[null,"TRC is a Program Management Contractor for Energy Trust of Oregon.",null,null,"Program Use Only",null,null,{"$f":"Version","v":"v2024.3"}]
[null,null,null,null,"Reference ID",{"$f":"IF(ReferenceID=\"\",\"\",ReferenceID)","v":""},"PTID",{"$f":"IF(PTID=\"\",\"\",PTID)","v":""}]
[]
[null,"Grocery"]
[null,"EQUIPMENT","REQUIREMENTS",null,"INCENTIVE PER UNIT","QUANTITY","INCENTIVE TOTAL","INSTALLED COST"]
[null,"Doors on Open  Freezers or Open Refrigerated Cases"]
[]
[]
[null,null,"   Horizontal hinges ","OR    Vertical hinges"]
[null,null,"Medium Temperature",null,350,null,{"$f":"E16*F16","v":0}]
[null,null,"Low Temperature",null,200,null,{"$f":"E17*F17","v":0}]
[null,"New Cooler Cases with Doors"]
[]
[]
[null,null,"Vertical cases - Coolers only",null,150,null,{"$f":"F21*E21","v":0}]
[null,null,null,null,"Bonus incentive:",null,{"$f":"E23*F22","v":0}]
[null,null,null,null,79]
[null,null,"Horizontal cases - Coolers or Freezers",null,150,null,{"$f":"F24*E24","v":0}]
[]
[null,"TOTALS FOR GROCERY",null,null,null,null,"TOTAL \nINCENTIVES","TOTAL\nINSTALLED COST"]
[null,null,null,null,null,null,{"$f":"SUM(G16:G17,G21:G24)","v":0},{"$f":"SUM(H16:H17,H21:H24)","v":0}]

{"sheet":"Insulation","index":6,"n_rows":58,"n_cols":10,"rows_kept":58,"cut":false,"hidden":false,"merged":[[42,2,42,3],[50,8,51,8],[50,9,51,9],[44,7,45,7],[44,8,45,8],[50,2,51,5],[33,6,42,9],[53,8,54,8],[53,9,54,9],[47,8,48,8],[44,9,45,9],[47,9,48,9],[56,1,57,7],[25,2,25,5],[33,2,33,5],[25,1,28,1],[53,7,54,7],[34,2,34,5],[50,7,51,7],[33,1,54,1],[47,7,48,7],[43,2,43,5],[46,2,46,5],[53,2,54,5],[49,2,49,5],[52,2,52,5],[44,2,45,5],[47,2,48,5],[15,1,18,1],[19,1,22,1],[11,1,14,1],[13,2,14,5],[27,2,28,5],[23,2,23,5],[23,1,24,1],[10,2,10,5],[11,2,11,5],[15,2,15,5],[19,2,19,5],[39,5,41,5],[37,4,37,5],[39,4,41,4],[32,2,32,5],[37,2,38,3],[39,2,39,3],[40,2,40,3],[41,2,41,3],[27,7,28,7],[27,9,28,9],[27,8,28,8],[21,7,22,7],[21,8,22,8],[25,9,26,9],[23,9,24,9],[23,6,24,6],[23,7,24,7],[23,8,24,8],[25,6,26,6],[25,7,26,7],[25,8,26,8],[17,7,18,7],[17,8,18,8],[17,9,18,9],[21,9,22,9],[21,2,22,5],[17,2,18,5],[19,6,20,6],[19,7,20,7],[19,8,20,8],[19,9,20,9],[11,6,12,6],[11,7,12,7],[11,8,12,8],[11,9,12,9],[15,6,16,6],[15,7,16,7],[15,8,16,8],[15,9,16,9],[13,7,14,7],[13,8,14,8],[13,9,14,9]]}
[]
[null,"Existing Buildings Standard Incentives ¾ NW Natural Washington"]
[null,"Commercial Buildings | Incentive Application | Form 120P-WA-EB"]
[]
[]
[]
[null,"TRC is a Program Management Contractor for Energy Trust of Oregon.",null,null,null,null,"Program Use Only",null,null,{"$f":"Version","v":"v2024.3"}]
[null,null,null,null,null,null,"Reference ID",{"$f":"IF(ReferenceID=\"\",\"\",ReferenceID)","v":""},"PTID",{"$f":"IF(PTID=\"\",\"\",PTID)","v":""}]
[]
[null,"Insulation"]
[null,"EQUIPMENT","REQUIREMENTS",null,null,null,"INCENTIVE PER UNIT","QUANTITY","INCENTIVE TOTAL","INSTALLED COST"]
[null," Attic Insulation,\n R-9 or less to R-25",null,null,null,null,0.9,null,{"$f":"G12*H12","v":0}]
[null,null,"Existing R-Value: ",null,"New R-Value:"]
[null,null,null,null,null,null,"Bonus incentive:",null,{"$f":"G15*H14","v":0}]
[null,null,null,null,null,null,0.3]
[null," Roof Insulation,\n R-0 to R-15",null,null,null,null,2.85,null,{"$f":"G16*H16","v":0},0]
[null,null,"Existing R-Value: ",null,"New R-Value:"]
[null,null,null,null,null,null,"Bonus incentive:",null,{"$f":"G19*H18","v":0}]
[null,null,null,null,null,null,1.5]
[null," Roof Insulation,\n R-0 to R-30",null,null,null,null,2.85,null,{"$f":"G20*H20","v":0},0]
[null,null,"Existing R-Value: ",null,"New R-Value:"]
[null,null,null,null,null,null,"Bonus incentive:",null,{"$f":"G23*H22","v":0}]
[null,null,null,null,null,null,1]
[null," Roof Insulation,\n R-5 or less to R-30",null,null,null,null,1,null,{"$f":"G24*H24","v":0},0]
[null,null,"Existing R-Value: ",null,"New R-Value:"]
[null," Wall Insulation,\n R-6 or less to R-20",null,null,null,null,1.3,null,{"$f":"G26*H26","v":0},0]
[null,null,"Existing R-Value: ",null,"New R-Value:"]
[null,null,null,null,null,null,"Bonus incentive:",null,{"$f":"G29*H28","v":0}]
[null,null,null,null,null,null,0.7]
[]
[]
[null,"Insulation continued"]
[null,"EQUIPMENT","REQUIREMENTS",null,null,null,"INCENTIVE PER UNIT","QUANTITY","INCENTIVE TOTAL","INSTALLED COST"]
[null," Pipe Insulation  "]
[]
[null,null,"Pipe Diameter:"]
[]
[null,null,"Fluid",null,"Pipe Diameter"]
[null,null,null,null,"1.5 inches or less","Greater than 1.5 inches"]
[null,null,"Domestic Hot Water",null,"1.5 Inches","2.0 Inches"]
[null,null,"Heating Hot Water"]
[null,null,"Low Pressure"]
[null,null,"Medium Pressure",null,"2.0 Inches","2.5 Inches"]
[null,null,"Piping serving domestic hot water",null,null,null,18,null,{"$f":"G44*H44","v":0}]
[null,null,null,null,null,null,"Bonus incentive:",null,{"$f":"H45*G46","v":0}]
[null,null,null,null,null,null,11]
[null,null,"Piping serving medium pressure steam (15-200 psig)",null,null,null,25,null,{"$f":"G47*H47","v":0}]
[null,null,null,null,null,null,25,null,{"$f":"H48*G49","v":0}]
[null,null,null,null,null,null,25]
[null,null,"Piping serving heating hot water",null,null,null,25,null,{"$f":"G50*H50","v":0}]
[null,null,null,null,null,null,25,null,{"$f":"H51*G52","v":0}]
[null,null,null,null,null,null,25]
[null,null,"Piping serving low pressure steam (less than 15 psig)",null,null,null,25,null,{"$f":"G53*H53","v":0}]
[null,null,null,null,null,null,"Bonus incentive:",null,{"$f":"H54*G55","v":0}]
[null,null,null,null,null,null,7]
[]
[null,"TOTALS FOR INSULATION",null,null,null,null,null,null,"TOTAL \nINCENTIVES","TOTAL\nINSTALLED COST"]
[null,null,null,null,null,null,null,null,{"$f":"SUM(I12:I29,I44:I55)","v":0},{"$f":"SUM(J12:J29,J44:J55)","v":0}]

{"sheet":"Eligible Spaces","index":7,"n_rows":25,"n_cols":1,"rows_kept":25,"cut":false,"hidden":true,"merged":[]}
["(Select)"]
["Arcade"]
["Art classroom"]
["Bank vaults/safe deposit room"]
["Coin-operated Laundromat"]
["Commercial Laundromat"]
["Computer room (without printing)"]
["Copy/printing room"]
["Grocery Store"]
["Guard Stations"]
["Health club/weight room"]
["Hotel Rooms"]
["Library"]
["Main entry lobby"]
["Medical operating room"]
["Medical procedure room"]
["Office spaces"]
["Other"]
["Patient room"]
["Pet shop (animal areas) "]
["Photo studio"]
["Physical therapy"]
["Recovery and ICU area"]
["Sales floor (except mall common areas)"]
["Wood/metal shop"]

{"sheet":"Lookups","index":8,"n_rows":54,"n_cols":2,"rows_kept":54,"cut":false,"hidden":true,"merged":[]}
["Heat"]
[0,"None"]
[1,"Electric"]
[2,"Gas"]
[3,"Other"]
[]
[]
["Building Use Type"]
["(select)"]
["Assembly"]
["Athletic Club"]
["Auto Services"]
["College/University"]
["Data Center"]
["Grocery"]
["Hospital"]
["Laundry / Dry Cleaners"]
["Lodging / Hotel / Motel"]
["Manufacturing"]
["Multifamily / Residential"]
["Office"]
["Other"]
["Parking Structure"]
["Religious / Spiritual"]
["Restaurant"]
["Retail"]
["Retirement Home"]
["Schools K-12"]
["Warehouse"]
[]
[]
["Electric Utility"]
["(select)"]
["PGE"]
["Pacific Power"]
["Other"]
[]
["Gas Utility"]
["(select)"]
["NWN"]
["Other"]
[]
["Fuel Source"]
["(select)"]
["Electricity"]
["Gas"]
["Other"]
[]
["Project Type"]
[1,"Existing Buildings"]
[2,"New Buildings"]
[3,"Existing Multifamily Buildings"]
[4,"New Multifamily Buildings"]
[5,"Greenhouses"]

{"sheet":"Admin Tools","index":9,"n_rows":0,"n_cols":0,"rows_kept":0,"cut":false,"hidden":false,"merged":[]}